fUST/lending_fUST_20250726
["ID","MTS","AMOUNT","RATE_DAILY","PERIOD"]
[375047012,1753511442964,-267.818058,0.00019426,2]
[375047013,1753511442974,-151.0,0.00019426,2]
[375047014,1753511442983,-151.0,0.00019426,2]
[375047015,1753511442992,-151.0,0.00019426,2]
[375047016,1753511443001,-151.0,0.00019426,2]
[375047017,1753511443011,-151.0,0.00019426,2]
[375047018,1753511443020,-151.0,0.00019442,2]
[375047019,1753511443030,-151.0,0.00019442,2]
[375047020,1753511443110,-151.0,0.00019442,2]
[375047021,1753511443120,-153.379069,0.00019442,2]
[375047022,1753511443129,-151.0,0.00019442,2]
[375047023,1753511443139,-151.0,0.00019442,2]
[375047024,1753511443148,-151.0,0.00019442,2]
[375047025,1753511443157,-177.007815,0.00019442,2]
[375047026,1753511443166,-177.007815,0.00019442,2]
[375047027,1753511443177,-5000.0,0.00019442,2]
[375047028,1753511443186,-500.0,0.0001945,2]
[375047029,1753511443196,-151.0,0.00019451,2]
[375047030,1753511443206,-840.268642,0.00019451,2]
[375047031,1753511443215,-840.268642,0.00019451,2]
[375047032,1753511443225,-500.0,0.00019451,2]
[375047034,1753511443234,-500.0,0.00019451,2]
[375047036,1753511443244,-500.0,0.00019451,2]
[375047038,1753511443253,-500.0,0.00019451,2]
[375047039,1753511443262,-500.0,0.00019451,2]
[375047042,1753511443272,-500.0,0.00019451,2]
[375047043,1753511443281,-500.0,0.00019451,2]
[375047045,1753511443291,-495.0,0.00019452,2]
[375047047,1753511443300,-151.0,0.00019452,2]
[375047049,1753511443310,-152.42810281,0.00019452,2]
[375047051,1753511443319,-151.0,0.00019452,2]
[375047054,1753511443329,-634.0,0.00019452,2]
[375047056,1753511443338,-151.0,0.00019452,2]
[375047057,1753511443347,-460.0,0.00019452,2]
[375047059,1753511443357,-460.0,0.00019452,2]
[375047061,1753511443366,-460.0,0.00019452,2]
[375047063,1753511443376,-572.96,0.00019452,2]
[375047065,1753511443385,-468.27143303,0.00019452,2]
[375047067,1753511443394,-460.0,0.00019452,2]
[375047069,1753511443404,-405.82940299,0.00019452,2]
[375047071,1753511443413,-472.47293805,0.00019452,2]
[375047073,1753511443424,-703.1,0.00019452,2]
[375047075,1753511443434,-462.60087915,0.00019452,2]
[375047078,1753511443443,-461.67519469,0.00019452,2]
[375047079,1753511443453,-460.0,0.00019452,2]
[375047082,1753511443462,-224.37187158,0.00019452,2]
[375047084,1753511443471,-460.0,0.00019452,2]
[375047086,1753511443480,-460.0,0.00019452,2]
[375047087,1753511443490,-460.0,0.00019452,2]
[375047089,1753511443499,-460.0,0.00019452,2]
[375047091,1753511443508,-460.0,0.00019452,2]
[375047093,1753511443517,-460.0,0.00019452,2]
[375047096,1753511443527,-460.0,0.00019452,2]
[375047099,1753511443536,-463.30998723,0.00019452,2]
[375047100,1753511443545,-460.0,0.00019452,2]
[375047102,1753511443554,-460.0,0.00019452,2]
[375047104,1753511443564,-460.0,0.00019452,2]
[375047106,1753511443573,-460.0,0.00019452,2]
[375047109,1753511443583,-402.60057284,0.00019452,2]
[375047110,1753511443592,-460.0,0.00019452,2]
[375047113,1753511443602,-460.0,0.00019452,2]
[375047114,1753511443611,-460.7798428,0.00019452,2]
[375047116,1753511443620,-460.0,0.00019452,2]
[375047119,1753511443630,-173.70711942,0.00019452,2]
[375047120,1753511443639,-460.0,0.00019452,2]
[375047122,1753511443649,-463.48573571,0.00019452,2]
[375047124,1753511443658,-460.0,0.00019452,2]
[375047126,1753511443667,-460.0,0.00019452,2]
[375047128,1753511443677,-460.0,0.00019452,2]
[375047130,1753511443687,-460.0,0.00019452,2]
[375047132,1753511443696,-151.0,0.00019452,2]
[375047134,1753511443706,-157.105254,0.00019452,2]
[375047136,1753511443715,-462.43240033,0.00019452,2]
[375047138,1753511443725,-460.0,0.00019452,2]
[375047140,1753511443735,-460.0,0.00019452,2]
[375047142,1753511443744,-365.06269812,0.00019452,2]
[375047144,1753511443753,-460.0,0.00019452,2]
[375047146,1753511443762,-460.0,0.00019452,2]
[375047148,1753511443772,-300.95510676,0.00019452,2]
[375047150,1753511443782,-460.0,0.00019452,2]
[375047152,1753511443791,-464.82710296,0.00019452,2]
[375047154,1753511443799,-460.0,0.00019452,2]
[375047156,1753511443809,-460.0,0.00019452,2]
[375047158,1753511443818,-460.0,0.00019452,2]
[375047160,1753511443827,-460.0,0.00019452,2]
[375047162,1753511443836,-151.0,0.00019452,2]
[375047164,1753511443845,-151.0,0.00019452,2]
[375047166,1753511443854,-460.0,0.00019452,2]
[375047168,1753511443864,-164.449512,0.00019452,2]
[375047170,1753511443873,-174.7614543,0.00019452,2]
[375047172,1753511443882,-509.73672316,0.00019452,2]
[375047174,1753511443891,-460.0,0.00019452,2]
[375047176,1753511443900,-460.0,0.00019452,2]
[375047178,1753511443910,-462.36756959,0.00019452,2]
[375047180,1753511443919,-327.21019509,0.00019452,2]
[375047182,1753511443928,-460.0,0.00019452,2]
[375047184,1753511443937,-460.0,0.00019452,2]
[375047186,1753511443947,-460.0,0.00019452,2]
[375047188,1753511443956,-462.5965178,0.00019452,2]
[375047190,1753511443966,-460.0,0.00019452,2]
[375047192,1753511443976,-460.0,0.00019452,2]
[375047194,1753511443985,-461.29578883,0.00019452,2]
[375047196,1753511443994,-460.0,0.00019452,2]
[375047198,1753511444003,-201.10812,0.00019452,2]
[375047200,1753511444012,-493.79,0.00019452,2]
[375047202,1753511444021,-151.0,0.00019452,2]
[375047204,1753511444031,-151.0,0.00019452,2]
[375047206,1753511444040,-151.0,0.00019452,2]
[375047209,1753511444049,-151.0,0.00019452,2]
[375047211,1753511444058,-460.0,0.00019452,2]
[375047213,1753511444068,-460.0,0.00019452,2]
[375047215,1753511444078,-469.14287676,0.00019452,2]
[375047217,1753511444087,-752.39,0.00019452,2]
[375047219,1753511444096,-514.08,0.00019452,2]
[375047221,1753511444105,-460.0,0.00019452,2]
[375047223,1753511444114,-468.36191498,0.00019452,2]
[375047225,1753511444124,-460.0,0.00019452,2]
[375047227,1753511444133,-151.0,0.00019452,2]
[375047229,1753511444143,-463.82105709,0.00019452,2]
[375047231,1753511444151,-203.707735,0.00019452,2]
[375047233,1753511444160,-151.0,0.00019452,2]
[375047235,1753511444169,-460.0,0.00019452,2]
[375047237,1753511444179,-460.0,0.00019452,2]
[375047238,1753511444189,-460.0,0.00019452,2]
[375047240,1753511444198,-460.0,0.00019452,2]
[375047242,1753511444208,-460.0,0.00019452,2]
[375047245,1753511444217,-460.0,0.00019452,2]
[375047246,1753511444227,-460.0,0.00019452,2]
[375047249,1753511444236,-460.0,0.00019452,2]
[375047250,1753511444245,-840.268642,0.00019452,2]
[375047252,1753511444255,-460.0,0.00019452,2]
[375047255,1753511444264,-460.0,0.00019452,2]
[375047257,1753511444274,-460.0,0.00019452,2]
[375047258,1753511444282,-840.268642,0.00019452,2]
[375047261,1753511444292,-460.0,0.00019452,2]
[375047263,1753511444301,-460.0,0.00019452,2]
[375047271,1753511444377,-463.44161823,0.00019452,2]
[375047273,1753511444386,-460.0,0.00019452,2]
[375047275,1753511444396,-460.0,0.00019452,2]
[375047277,1753511444405,-460.0,0.00019452,2]
[375047279,1753511444415,-460.0,0.00019452,2]
[375047281,1753511444424,-460.0,0.00019452,2]
[375047283,1753511444434,-460.0,0.00019452,2]
[375047285,1753511444444,-151.0,0.00019452,2]
[375047287,1753511444453,-151.0,0.00019452,2]
[375047289,1753511444462,-846.44,0.00019452,2]
[375047291,1753511444472,-464.65356369,0.00019452,2]
[375047293,1753511444481,-460.0,0.00019452,2]
[375047294,1753511444491,-538.11110649,0.00019452,2]
[375047296,1753511444500,-460.0,0.00019452,2]
[375047299,1753511444510,-460.0,0.00019452,2]
[375047301,1753511444520,-153.020978,0.00019452,2]
[375047303,1753511444529,-460.0,0.00019452,2]
[375047304,1753511444538,-466.7341785,0.00019452,2]
[375047306,1753511444548,-460.0,0.00019452,2]
[375047309,1753511444558,-460.0,0.00019452,2]
[375047311,1753511444567,-151.0,0.00019452,2]
[375047312,1753511444577,-275.438568,0.00019452,2]
[375047314,1753511444587,-764.23,0.00019452,2]
[375047316,1753511444596,-273.91261486,0.00019452,2]
[375047319,1753511444606,-460.0,0.00019452,2]
[375047320,1753511444615,-460.0,0.00019452,2]
[375047323,1753511444625,-460.0,0.00019452,2]
[375047324,1753511444634,-921.6,0.00019452,2]
[375047327,1753511444643,-329.21606791,0.00019452,2]
[375047328,1753511444652,-460.0,0.00019452,2]
[375047331,1753511444662,-460.0,0.00019452,2]
[375047333,1753511444671,-281.18009666,0.00019452,2]
[375047334,1753511444681,-460.0,0.00019452,2]
[375047336,1753511444690,-460.0,0.00019452,2]
[375047338,1753511444699,-469.48150623,0.00019452,2]
[375047341,1753511444709,-460.0,0.00019452,2]
[375047343,1753511444718,-460.0,0.00019452,2]
[375047344,1753511444727,-151.0,0.00019452,2]
[375047346,1753511444737,-151.0,0.00019452,2]
[375047348,1753511444747,-460.0,0.00019452,2]
[375047350,1753511444759,-460.0,0.00019452,2]
[375047353,1753511444769,-460.0,0.00019452,2]
[375047355,1753511444778,-460.0,0.00019452,2]
[375047357,1753511444787,-460.0,0.00019452,2]
[375047359,1753511444796,-460.0,0.00019452,2]
[375047361,1753511444810,-471.03334323,0.00019452,2]
[375047363,1753511444820,-249.376456,0.00019452,2]
[375047365,1753511444830,-249.376456,0.00019452,2]
[375047367,1753511444839,-249.376456,0.00019452,2]
[375047369,1753511444848,-461.06430704,0.00019452,2]
[375047371,1753511444857,-249.376456,0.00019452,2]
[375047373,1753511444866,-249.376456,0.00019452,2]
[375047375,1753511444876,-249.376456,0.00019452,2]
[375047377,1753511444884,-460.0,0.00019452,2]
[375047379,1753511444894,-460.0,0.00019452,2]
[375047381,1753511444903,-460.0,0.00019452,2]
[375047383,1753511444912,-460.0,0.00019452,2]
[375047385,1753511444921,-460.0,0.00019452,2]
[375047386,1753511444931,-460.0,0.00019452,2]
[375047389,1753511444941,-460.0,0.00019452,2]
[375047390,1753511444950,-464.54443065,0.00019452,2]
[375047393,1753511444960,-328.2014028,0.00019452,2]
[375047395,1753511444969,-460.0,0.00019452,2]
[375047397,1753511444979,-461.24724594,0.00019452,2]
[375047399,1753511444988,-151.0,0.00019452,2]
[375047401,1753511444998,-460.0,0.00019452,2]
[375047402,1753511445007,-151.0,0.00019452,2]
[375047403,1753511445017,-266.743077,0.00019452,2]
[375047404,1753511445025,-464.27552028,0.00019452,2]
[375047405,1753511445034,-460.0,0.00019452,2]
[375047406,1753511445043,-460.0,0.00019452,2]
[375047407,1753511445052,-151.0,0.00019452,2]
[375047408,1753511445061,-151.0,0.00019452,2]
[375047409,1753511445070,-464.3121654,0.00019452,2]
[375047410,1753511445079,-1214.9,0.00019452,2]
[375047411,1753511445088,-460.0,0.00019452,2]
[375047412,1753511445097,-460.0,0.00019452,2]
[375047413,1753511445106,-471.25117022,0.00019452,2]
[375047414,1753511445115,-460.0,0.00019452,2]
[375047415,1753511445124,-461.48849038,0.00019452,2]
[375047416,1753511445133,-460.0,0.00019452,2]
[375047417,1753511445142,-460.0,0.00019452,2]
[375047418,1753511445151,-460.0,0.00019452,2]
[375047419,1753511445160,-460.0,0.00019452,2]
[375047420,1753511445170,-460.0,0.00019452,2]
[375047421,1753511445179,-460.0,0.00019452,2]
[375047422,1753511445188,-460.0,0.00019452,2]
[375047423,1753511445197,-485.31,0.00019452,2]
[375047424,1753511445206,-462.38341549,0.00019452,2]
[375047425,1753511445216,-460.0,0.00019452,2]
[375047426,1753511445225,-460.0,0.00019452,2]
[375047427,1753511445234,-460.0,0.00019452,2]
[375047428,1753511445243,-460.0,0.00019452,2]
[375047429,1753511445252,-460.0,0.00019452,2]
[375047430,1753511445261,-460.0,0.00019452,2]
[375047431,1753511445270,-1122.24,0.00019452,2]
[375047433,1753511445280,-460.0,0.00019452,2]
[375047435,1753511445289,-460.0,0.00019452,2]
[375047437,1753511445298,-460.0,0.00019452,2]
[375047439,1753511445308,-460.0,0.00019452,2]
[375047441,1753511445317,-460.0,0.00019452,2]
[375047443,1753511445327,-460.0,0.00019452,2]
[375047445,1753511445336,-464.51550567,0.00019452,2]
[375047447,1753511445346,-460.0,0.00019452,2]
[375047449,1753511445356,-460.0,0.00019452,2]
[375047451,1753511445366,-463.83762708,0.00019452,2]
[375047453,1753511445376,-151.0,0.00019452,2]
[375047455,1753511445386,-151.0,0.00019452,2]
[375047457,1753511445396,-1121.8,0.00019452,2]
[375047459,1753511445406,-470.67417718,0.00019452,2]
[375047461,1753511445416,-465.49233487,0.00019452,2]
[375047463,1753511445426,-460.0,0.00019452,2]
[375047465,1753511445436,-461.16073628,0.00019452,2]
[375047467,1753511445446,-460.0,0.00019452,2]
[375047469,1753511445455,-460.0,0.00019452,2]
[375047471,1753511445465,-460.0,0.00019452,2]
[375047473,1753511445474,-460.0,0.00019452,2]
[375047482,1753511445550,-460.0,0.00019452,2]
[375047485,1753511445561,-463.054452,0.00019452,2]
[375047487,1753511445570,-460.0,0.00019452,2]
[375047488,1753511445580,-460.0,0.00019452,2]
[375047490,1753511445590,-460.0,0.00019452,2]
[375047492,1753511445600,-460.0,0.00019452,2]
[375047494,1753511445609,-460.0,0.00019452,2]
[375047496,1753511445618,-410.64083214,0.00019452,2]
[375047498,1753511445628,-460.0,0.00019452,2]
[375047500,1753511445637,-460.0,0.00019452,2]
[375047502,1753511445647,-462.49005568,0.00019452,2]
[375047504,1753511445657,-460.0,0.00019452,2]
[375047507,1753511445667,-465.30767369,0.00019452,2]
[375047509,1753511445677,-509.89571059,0.00019452,2]
[375047511,1753511445687,-460.0,0.00019452,2]
[375047513,1753511445696,-243.11808252,0.00019452,2]
[375047515,1753511445706,-460.0,0.00019452,2]
[375047517,1753511445715,-151.0,0.00019452,2]
[375047519,1753511445725,-460.0,0.00019452,2]
[375047521,1753511445735,-151.0,0.00019452,2]
[375047523,1753511445744,-151.0,0.00019452,2]
[375047525,1753511445753,-151.0,0.00019452,2]
[375047527,1753511445762,-284.15522117,0.00019452,2]
[375047530,1753511445772,-462.82622777,0.00019452,2]
[375047533,1753511445782,-460.0,0.00019452,2]
[375047535,1753511445792,-471.42265284,0.00019452,2]
[375047537,1753511445802,-460.0,0.00019452,2]
[375047539,1753511445812,-460.0,0.00019452,2]
[375047541,1753511445822,-460.0,0.00019452,2]
[375047543,1753511445831,-460.0,0.00019452,2]
[375047545,1753511445840,-460.0,0.00019452,2]
[375047546,1753511445850,-659.73,0.00019452,2]
[375047549,1753511445860,-463.40792529,0.00019452,2]
[375047550,1753511445870,-460.0,0.00019452,2]
[375047552,1753511445879,-460.0,0.00019452,2]
[375047554,1753511445888,-460.0,0.00019452,2]
[375047556,1753511445898,-458.6307424,0.00019452,2]
[375047558,1753511445907,-460.0,0.00019452,2]
[375047560,1753511445916,-1000.0,0.00019452,2]
[375047562,1753511445926,-377.22010045,0.00019452,2]
[375047564,1753511445935,-460.0,0.00019452,2]
[375047566,1753511445944,-460.0,0.00019452,2]
[375047568,1753511445953,-204.9555376,0.00019452,2]
[375047570,1753511445963,-463.28158413,0.00019452,2]
[375047572,1753511445972,-460.0,0.00019452,2]
[375047574,1753511445981,-462.3454776,0.00019452,2]
[375047576,1753511445990,-460.0,0.00019452,2]
[375047578,1753511445999,-460.0,0.00019452,2]
[375047580,1753511446008,-460.0,0.00019452,2]
[375047582,1753511446017,-460.0,0.00019452,2]
[375047584,1753511446026,-460.0,0.00019452,2]
[375047586,1753511446035,-460.0,0.00019452,2]
[375047588,1753511446045,-460.0,0.00019452,2]
[375047590,1753511446054,-471.12003704,0.00019452,2]
[375047592,1753511446063,-416.53792389,0.00019452,2]
[375047594,1753511446072,-460.0,0.00019452,2]
[375047596,1753511446081,-460.0,0.00019452,2]
[375047598,1753511446090,-460.0,0.00019452,2]
[375047600,1753511446100,-151.0,0.00019452,2]
[375047602,1753511446109,-460.0,0.00019452,2]
[375047604,1753511446118,-461.23990033,0.00019452,2]
[375047606,1753511446127,-460.0,0.00019452,2]
[375047608,1753511446136,-460.0,0.00019452,2]
[375047610,1753511446146,-463.20555851,0.00019452,2]
[375047612,1753511446155,-460.0,0.00019452,2]
[375047614,1753511446164,-276.27711153,0.00019452,2]
[375047616,1753511446173,-460.0,0.00019452,2]
[375047618,1753511446183,-460.0,0.00019452,2]
[375047620,1753511446192,-466.42093496,0.00019452,2]
[375047622,1753511446201,-151.0,0.00019452,2]
[375047624,1753511446211,-151.0,0.00019452,2]
[375047626,1753511446220,-460.0,0.00019452,2]
[375047628,1753511446229,-460.0,0.00019452,2]
[375047630,1753511446238,-460.0,0.00019452,2]
[375047632,1753511446247,-460.0,0.00019452,2]
[375047634,1753511446256,-460.0,0.00019452,2]
[375047636,1753511446265,-952.14,0.00019452,2]
[375047638,1753511446275,-460.0,0.00019452,2]
[375047640,1753511446284,-463.79380061,0.00019452,2]
[375047642,1753511446293,-460.0,0.00019452,2]
[375047644,1753511446302,-460.0,0.00019452,2]
[375047646,1753511446312,-460.0,0.00019452,2]
[375047648,1753511446326,-465.20680259,0.00019452,2]
[375047650,1753511446335,-461.67551658,0.00019452,2]
[375047652,1753511446344,-368.56171095,0.00019452,2]
[375047654,1753511446354,-588.74,0.00019452,2]
[375047656,1753511446365,-460.0,0.00019452,2]
[375047658,1753511446375,-460.0,0.00019452,2]
[375047660,1753511446384,-463.78973399,0.00019452,2]
[375047662,1753511446394,-460.0,0.00019452,2]
[375047664,1753511446404,-460.0,0.00019452,2]
[375047666,1753511446413,-577.95,0.00019452,2]
[375047668,1753511446423,-177.007815,0.00019452,2]
[375047669,1753511446433,-177.007815,0.00019452,2]
[375047671,1753511446442,-460.0,0.00019452,2]
[375047673,1753511446451,-460.0,0.00019452,2]
[375047676,1753511446461,-177.007815,0.00019452,2]
[375047678,1753511446470,-460.0,0.00019452,2]
[375047680,1753511446482,-177.007815,0.00019452,2]
[375047682,1753511446491,-460.0,0.00019452,2]
[375047683,1753511446501,-462.23569264,0.00019452,2]
[375047686,1753511446511,-460.0,0.00019452,2]
[375047688,1753511446520,-460.0,0.00019452,2]
[375047690,1753511446531,-460.0,0.00019452,2]
[375047691,1753511446540,-2703.47,0.00019452,2]
[375047693,1753511446549,-460.0,0.00019452,2]
[375047695,1753511446559,-460.0,0.00019452,2]
[375047698,1753511446568,-460.0,0.00019452,2]
[375047699,1753511446577,-462.05166162,0.00019452,2]
[375047709,1753511446649,-460.0,0.00019452,2]
[375047710,1753511446658,-3615.3,0.00019452,2]
[375047712,1753511446667,-461.198791,0.00019452,2]
[375047714,1753511446676,-463.32192899,0.00019452,2]
[375047717,1753511446686,-500.0,0.00019452,2]
[375047719,1753511446695,-460.0,0.00019452,2]
[375047720,1753511446704,-460.0,0.00019452,2]
[375047723,1753511446713,-460.0,0.00019452,2]
[375047725,1753511446723,-440.52236543,0.00019452,2]
[375047727,1753511446732,-460.0,0.00019452,2]
[375047729,1753511446740,-226.31008836,0.00019452,2]
[375047731,1753511446749,-374.56816575,0.00019452,2]
[375047733,1753511446758,-990.15,0.00019452,2]
[375047735,1753511446767,-460.0,0.00019452,2]
[375047737,1753511446777,-460.0,0.00019452,2]
[375047739,1753511446786,-460.0,0.00019452,2]
[375047741,1753511446795,-460.0,0.00019452,2]
[375047743,1753511446804,-460.0,0.00019452,2]
[375047745,1753511446813,-461.84142128,0.00019452,2]
[375047747,1753511446822,-460.0,0.00019452,2]
[375047749,1753511446831,-460.0,0.00019452,2]
[375047751,1753511446841,-460.0,0.00019452,2]
[375047753,1753511446850,-464.56293058,0.00019452,2]
[375047755,1753511446859,-460.0,0.00019452,2]
[375047757,1753511446868,-460.0,0.00019452,2]
[375047759,1753511446877,-898.03,0.00019452,2]
[375047761,1753511446886,-460.0,0.00019452,2]
[375047762,1753511446895,-2024.16,0.00019452,2]
[375047764,1753511446904,-460.0,0.00019452,2]
[375047767,1753511446914,-1304.94,0.00019452,2]
[375047769,1753511446923,-460.0,0.00019452,2]
[375047771,1753511446933,-460.0,0.00019452,2]
[375047773,1753511446942,-460.0,0.00019452,2]
[375047775,1753511446951,-460.0,0.00019452,2]
[375047777,1753511446960,-1679.2,0.00019452,2]
[375047778,1753511446969,-460.0,0.00019452,2]
[375047780,1753511446979,-460.0,0.00019452,2]
[375047782,1753511446988,-460.0,0.00019452,2]
[375047785,1753511446997,-460.0,0.00019452,2]
[375047787,1753511447007,-460.0,0.00019452,2]
[375047789,1753511447016,-460.0,0.00019452,2]
[375047791,1753511447025,-1189.34,0.00019452,2]
[375047793,1753511447034,-460.0,0.00019452,2]
[375047795,1753511447043,-460.0,0.00019452,2]
[375047797,1753511447052,-460.0,0.00019452,2]
[375047799,1753511447061,-460.0,0.00019452,2]
[375047801,1753511447070,-550.62,0.00019452,2]
[375047803,1753511447079,-466.28586178,0.00019452,2]
[375047804,1753511447088,-1014.76,0.00019452,2]
[375047807,1753511447097,-460.0,0.00019452,2]
[375047810,1753511447121,-166.37963201,0.00019452,2]
[375047813,1753511447137,-361.49935762,0.00019452,2]
[375047816,1753511447155,-460.0,0.00019452,2]
[375047819,1753511447174,-460.0,0.00019452,2]
[375047822,1753511447194,-258.75095088,0.00019452,2]
[375047825,1753511447211,-460.0,0.00019452,2]
[375047828,1753511447229,-151.0,0.00019452,2]
[375047830,1753511447243,-460.0,0.00019452,2]
[375047833,1753511447260,-151.0,0.00019452,2]
[375047836,1753511447278,-151.0,0.00019452,2]
[375047839,1753511447298,-460.0,0.00019452,2]
[375047841,1753511447312,-460.0,0.00019452,2]
[375047844,1753511447327,-460.0,0.00019452,2]
[375047847,1753511447344,-151.0,0.00019452,2]
[375047849,1753511447358,-151.0,0.00019452,2]
[375047852,1753511447373,-151.0,0.00019452,2]
[375047854,1753511447387,-460.0,0.00019452,2]
[375047857,1753511447402,-5717.47,0.00019452,2]
[375047859,1753511447417,-460.0,0.00019452,2]
[375047862,1753511447432,-610.15,0.00019452,2]
[375047864,1753511447447,-460.0,0.00019452,2]
[375047867,1753511447461,-460.0,0.00019452,2]
[375047870,1753511447476,-7840.49,0.00019452,2]
[375047872,1753511447491,-460.0,0.00019452,2]
[375047875,1753511447509,-635.79,0.00019452,2]
[375047877,1753511447524,-460.0,0.00019452,2]
[375047880,1753511447538,-460.0,0.00019452,2]
[375047882,1753511447552,-3221.32,0.00019452,2]
[375047885,1753511447566,-513.15,0.00019452,2]
[375047887,1753511447580,-467.31220708,0.00019452,2]
[375047890,1753511447595,-460.0,0.00019452,2]
[375047892,1753511447609,-2684.27,0.00019452,2]
[375047895,1753511447624,-460.0,0.00019452,2]
[375047897,1753511447638,-460.0,0.00019452,2]
[375047900,1753511447653,-460.0,0.00019452,2]
[375047902,1753511447667,-249.79879,0.00019452,2]
[375047905,1753511447682,-460.0,0.00019452,2]
[375047908,1753511447697,-460.0,0.00019452,2]
[375047910,1753511447711,-460.0,0.00019452,2]
[375047913,1753511447725,-673.7,0.00019452,2]
[375047915,1753511447740,-164.120954,0.00019452,2]
[375047917,1753511447751,-164.120954,0.00019452,2]
[375047919,1753511447761,-177.62326149,0.00019452,2]
[375047921,1753511447770,-164.120954,0.00019452,2]
[375047923,1753511447779,-460.0,0.00019452,2]
[375047925,1753511447789,-164.120954,0.00019452,2]
[375047927,1753511447798,-1085.43,0.00019452,2]
[375047929,1753511447808,-164.120954,0.00019452,2]
[375047931,1753511447819,-460.72726183,0.00019452,2]
[375047947,1753511447951,-164.120954,0.00019452,2]
[375047950,1753511447969,-902.32,0.00019452,2]
[375047952,1753511447979,-460.0,0.00019452,2]
[375047954,1753511447988,-460.0,0.00019452,2]
[375047956,1753511447997,-460.0,0.00019452,2]
[375047958,1753511448006,-460.0,0.00019452,2]
[375047960,1753511448016,-274.64888894,0.00019452,2]
[375047962,1753511448025,-563.64411547,0.00019452,2]
[375047964,1753511448035,-460.0,0.00019452,2]
[375047966,1753511448044,-460.0,0.00019452,2]
[375047968,1753511448053,-460.0,0.00019452,2]
[375047970,1753511448063,-460.0,0.00019452,2]
[375047972,1753511448072,-460.0,0.00019452,2]
[375047974,1753511448081,-4417.81,0.00019452,2]
[375047976,1753511448091,-460.0,0.00019452,2]
[375047978,1753511448100,-151.0,0.00019452,2]
[375047980,1753511448109,-151.0,0.00019452,2]
[375047982,1753511448118,-151.0,0.00019452,2]
[375047984,1753511448128,-460.0,0.00019452,2]
[375047986,1753511448137,-460.0,0.00019452,2]
[375047988,1753511448147,-931.56,0.00019452,2]
[375047990,1753511448157,-464.20132452,0.00019452,2]
[375047992,1753511448166,-2107.03,0.00019452,2]
[375047994,1753511448175,-460.0,0.00019452,2]
[375047996,1753511448185,-460.0,0.00019452,2]
[375047998,1753511448194,-460.0,0.00019452,2]
[375048000,1753511448203,-460.0,0.00019452,2]
[375048001,1753511448213,-1710.8,0.00019452,2]
[375048003,1753511448223,-460.0,0.00019452,2]
[375048006,1753511448233,-460.0,0.00019452,2]
[375048008,1753511448242,-460.0,0.00019452,2]
[375048010,1753511448252,-460.0,0.00019452,2]
[375048012,1753511448261,-1102.93,0.00019452,2]
[375048014,1753511448270,-335.54966154,0.00019452,2]
[375048016,1753511448279,-585.1,0.00019452,2]
[375048017,1753511448288,-460.0,0.00019452,2]
[375048019,1753511448298,-697.82,0.00019452,2]
[375048021,1753511448307,-460.0,0.00019452,2]
[375048024,1753511448320,-151.0,0.00019452,2]